[Event "*** Titled Tuesday Blitz"]
[Site "Chess.com"]
[Date "2020.01.07"]
[Round "4"]
[White "fish7728"]
[Black "Zq1"]
[Result "0-1"]
[WhiteElo "2136"]
[BlackElo "2524"]
[TimeControl "180+2"]
[EndTime "13:54:03 PST"]
[Termination "Zq1 won on time"]

1. d4 {[%clk 0:03:01.9]} 1... Nf6 {[%clk 0:03:00.1]} 2. c4 {[%clk 0:03:02.6]}
2... a6 {[%clk 0:03:00.7]} 3. g3 {[%clk 0:02:57.3]} 3... c5 {[%clk 0:03:01.5]}
4. Nf3 {[%clk 0:02:53.8]} 4... cxd4 {[%clk 0:03:02.3]} 5. Nxd4 {[%clk
0:02:53.5]} 5... d5 {[%clk 0:03:03.2]} 6. Bg2 {[%clk 0:02:47.8]} 6... e5 {[%clk
0:03:03.5]} 7. Nf3 {[%clk 0:02:45]} 7... d4 {[%clk 0:03:03.3]} 8. O-O {[%clk
0:02:44]} 8... Nc6 {[%clk 0:03:03.4]} 9. e3 {[%clk 0:02:43.1]} 9... Bc5 {[%clk
0:02:56.7]} 10. exd4 {[%clk 0:02:42.5]} 10... Bxd4 {[%clk 0:02:57.8]} 11. Nxd4
{[%clk 0:02:30.5]} 11... exd4 {[%clk 0:02:58.6]} 12. Re1+ {[%clk 0:02:30.4]}
12... Be6 {[%clk 0:02:58.6]} 13. b3 {[%clk 0:02:19.3]} 13... O-O {[%clk
0:02:54.4]} 14. Nd2 {[%clk 0:02:13.4]} 14... Bf5 {[%clk 0:02:42.3]} 15. Ne4
{[%clk 0:02:01.4]} 15... Re8 {[%clk 0:02:34.8]} 16. Nxf6+ {[%clk 0:01:36.8]}
16... Qxf6 {[%clk 0:02:34.6]} 17. Bf4 {[%clk 0:01:31.3]} 17... g5 {[%clk
0:02:22]} 18. Bd2 {[%clk 0:01:21.2]} 18... Rad8 {[%clk 0:02:13.3]} 19. Qf3
{[%clk 0:01:11.8]} 19... Ne5 {[%clk 0:01:59.2]} 20. Qxb7 {[%clk 0:01:01.4]}
20... Nd3 {[%clk 0:01:58.6]} 21. Rxe8+ {[%clk 0:00:53.6]} 21... Rxe8 {[%clk
0:01:59]} 22. Qc6 {[%clk 0:00:51.5]} 22... Qxc6 {[%clk 0:01:56.3]} 23. Bxc6
{[%clk 0:00:50.9]} 23... Re2 {[%clk 0:01:55.6]} 24. Bxg5 {[%clk 0:00:46.7]}
24... Nxf2 {[%clk 0:01:55.6]} 25. Bg2 {[%clk 0:00:13.1]} 25... d3 {[%clk
0:01:41.1]} 26. Rf1 {[%clk 0:00:10.1]} 26... Nh3+ {[%clk 0:01:13.7]} 27. Bxh3
{[%clk 0:00:10.5]} 27... Bxh3 {[%clk 0:01:13.7]} 28. Rd1 {[%clk 0:00:11]} 28...
Rg2+ {[%clk 0:01:13.5]} 29. Kh1 {[%clk 0:00:11.5]} 29... Rxa2 {[%clk 0:01:09.9]}
30. c5 {[%clk 0:00:10.2]} 30... Rc2 {[%clk 0:00:52.9]} 31. Be3 {[%clk
0:00:05.6]} 31... Bf5 {[%clk 0:00:48.3]} 32. Kg1 {[%clk 0:00:03.8]} 32... Be4
{[%clk 0:00:47.9]} 0-1

[Event "*** Titled Tuesday Blitz"]
[Site "Chess.com"]
[Date "2020.01.07"]
[Round "4"]
[White "brendan174"]
[Black "guillembaches"]
[Result "0-1"]
[WhiteElo "2091"]
[BlackElo "2296"]
[TimeControl "180+2"]
[EndTime "13:54:09 PST"]
[Termination "guillembaches won by resignation"]

1. d4 {[%clk 0:03:01.9]} 1... Nf6 {[%clk 0:02:59.7]} 2. Nc3 {[%clk 0:03:02.9]}
2... d6 {[%clk 0:02:53.3]} 3. e4 {[%clk 0:03:02.1]} 3... Nbd7 {[%clk 0:02:54.4]}
4. Nf3 {[%clk 0:02:58]} 4... e5 {[%clk 0:02:55.4]} 5. Bc4 {[%clk 0:02:57.2]}
5... Be7 {[%clk 0:02:56.2]} 6. O-O {[%clk 0:02:57.1]} 6... O-O {[%clk
0:02:56.4]} 7. h3 {[%clk 0:02:54.7]} 7... c6 {[%clk 0:02:56.2]} 8. a4 {[%clk
0:02:54.6]} 8... Qc7 {[%clk 0:02:52.9]} 9. Be3 {[%clk 0:02:52.3]} 9... h6 {[%clk
0:02:51.8]} 10. Qd2 {[%clk 0:02:50.9]} 10... Kh7 {[%clk 0:02:35.3]} 11. Rad1
{[%clk 0:02:47.3]} 11... a5 {[%clk 0:02:33.9]} 12. Rfe1 {[%clk 0:02:44.3]} 12...
b6 {[%clk 0:02:31.2]} 13. Qe2 {[%clk 0:02:17.9]} 13... Bb7 {[%clk 0:02:24.4]}
14. dxe5 {[%clk 0:01:54.6]} 14... Nxe5 {[%clk 0:02:19]} 15. Nxe5 {[%clk
0:01:53.3]} 15... dxe5 {[%clk 0:02:20.9]} 16. Qf3 {[%clk 0:01:48.9]} 16... Bc8
{[%clk 0:02:06.4]} 17. Rd2 {[%clk 0:01:46]} 17... Be6 {[%clk 0:02:01.9]} 18.
Bxe6 {[%clk 0:01:40.4]} 18... fxe6 {[%clk 0:02:03.8]} 19. Qg3 {[%clk 0:01:35.1]}
19... Bb4 {[%clk 0:02:00.7]} 20. f3 {[%clk 0:01:20.6]} 20... Rf7 {[%clk
0:01:53.6]} 21. Red1 {[%clk 0:01:18.6]} 21... Nd7 {[%clk 0:01:47.2]} 22. Qg4
{[%clk 0:01:12.6]} 22... Nc5 {[%clk 0:01:46.5]} 23. Bxc5 {[%clk 0:01:06.1]}
23... Bxc5+ {[%clk 0:01:45.4]} 24. Kh1 {[%clk 0:01:07.5]} 24... Re8 {[%clk
0:01:37.8]} 25. Ne2 {[%clk 0:01:07.5]} 25... b5 {[%clk 0:01:22.8]} 26. axb5
{[%clk 0:01:06.8]} 26... cxb5 {[%clk 0:01:24.7]} 27. Ng3 {[%clk 0:01:05.1]}
27... b4 {[%clk 0:01:04.6]} 28. Nf1 {[%clk 0:00:39.4]} 28... a4 {[%clk
0:01:00.3]} 29. Qh4 {[%clk 0:00:31.6]} 29... Bd4 {[%clk 0:00:57.2]} 30. b3
{[%clk 0:00:22.7]} 30... a3 {[%clk 0:00:57.8]} 31. Qe1 {[%clk 0:00:13]} 31...
Qc3 {[%clk 0:00:49.7]} 32. Qe2 {[%clk 0:00:11.5]} 32... a2 {[%clk 0:00:46.2]}
33. Rd3 {[%clk 0:00:06.5]} 33... a1=Q {[%clk 0:00:45]} 0-1

[Event "*** Titled Tuesday Blitz"]
[Site "Chess.com"]
[Date "2020.01.07"]
[Round "4"]
[White "Kumi29"]
[Black "norwaytoadog"]
[Result "0-1"]
[WhiteElo "2484"]
[BlackElo "2334"]
[TimeControl "180+2"]
[EndTime "13:54:10 PST"]
[Termination "norwaytoadog won by checkmate"]

1. d4 {[%clk 0:03:01.9]} 1... Nf6 {[%clk 0:02:59.9]} 2. Bg5 {[%clk 0:03:02.5]}
2... e6 {[%clk 0:02:57.3]} 3. Nd2 {[%clk 0:03:03.1]} 3... h6 {[%clk 0:02:58]} 4.
Bh4 {[%clk 0:03:03.5]} 4... b6 {[%clk 0:02:54.3]} 5. e4 {[%clk 0:03:02.4]} 5...
Be7 {[%clk 0:02:55.4]} 6. e5 {[%clk 0:03:00.3]} 6... Ng8 {[%clk 0:02:51.9]} 7.
Bg3 {[%clk 0:02:56.1]} 7... Bb7 {[%clk 0:02:49.9]} 8. Ngf3 {[%clk 0:02:54.8]}
8... d6 {[%clk 0:02:45.2]} 9. c3 {[%clk 0:02:53.2]} 9... a6 {[%clk 0:02:39.3]}
10. Bd3 {[%clk 0:02:50.7]} 10... Nd7 {[%clk 0:02:37.3]} 11. O-O {[%clk
0:02:50.7]} 11... dxe5 {[%clk 0:02:36.9]} 12. Nxe5 {[%clk 0:02:51.2]} 12... Ngf6
{[%clk 0:02:27.8]} 13. Re1 {[%clk 0:02:45.1]} 13... Nxe5 {[%clk 0:02:24]} 14.
Bxe5 {[%clk 0:02:43.4]} 14... O-O {[%clk 0:02:17.5]} 15. Ne4 {[%clk 0:02:32.9]}
15... Nxe4 {[%clk 0:02:06.6]} 16. Bxe4 {[%clk 0:02:34.1]} 16... Bxe4 {[%clk
0:02:07.2]} 17. Rxe4 {[%clk 0:02:36]} 17... Bd6 {[%clk 0:01:55.1]} 18. Qf3
{[%clk 0:02:26.6]} 18... Qe7 {[%clk 0:01:43]} 19. Rae1 {[%clk 0:02:26.5]} 19...
Rad8 {[%clk 0:01:39.3]} 20. Qg4 {[%clk 0:02:22.7]} 20... f5 {[%clk 0:01:31.4]}
21. Qxg7+ {[%clk 0:01:35.5]} 21... Qxg7 {[%clk 0:01:31.5]} 22. Bxg7 {[%clk
0:01:37.2]} 22... fxe4 {[%clk 0:01:24.1]} 23. Bxf8 {[%clk 0:01:38.1]} 23... Kxf8
{[%clk 0:01:20.3]} 24. Rxe4 {[%clk 0:01:39.2]} 24... Kf7 {[%clk 0:01:21.3]} 25.
g3 {[%clk 0:01:37.8]} 25... Kf6 {[%clk 0:01:19.5]} 26. f4 {[%clk 0:01:34.4]}
26... Kf5 {[%clk 0:01:19.6]} 27. Re2 {[%clk 0:01:32.6]} 27... c5 {[%clk
0:01:17.9]} 28. dxc5 {[%clk 0:01:30.7]} 28... Bxc5+ {[%clk 0:01:14.8]} 29. Kg2
{[%clk 0:01:32.2]} 29... Rd1 {[%clk 0:01:11.5]} 30. b4 {[%clk 0:01:31.2]} 30...
Bd6 {[%clk 0:01:05.2]} 31. Kf3 {[%clk 0:01:26.4]} 31... h5 {[%clk 0:01:05.2]}
32. Kf2 {[%clk 0:01:21.9]} 32... Rd3 {[%clk 0:00:54.5]} 33. Rc2 {[%clk
0:01:22.8]} 33... e5 {[%clk 0:00:52.2]} 34. fxe5 {[%clk 0:01:23]} 34... Bxe5
{[%clk 0:00:52.5]} 35. b5 {[%clk 0:00:50.8]} 35... a5 {[%clk 0:00:52]} 36. c4
{[%clk 0:00:46.7]} 36... Bd4+ {[%clk 0:00:52]} 37. Kg2 {[%clk 0:00:44.9]} 37...
Rc3 {[%clk 0:00:44.6]} 38. Re2 {[%clk 0:00:39.4]} 38... Rxc4 {[%clk 0:00:43.5]}
39. Re8 {[%clk 0:00:37.1]} 39... Rc2+ {[%clk 0:00:44]} 40. Kf3 {[%clk
0:00:35.7]} 40... Rf2# {[%clk 0:00:43.7]} 0-1

[Event "*** Titled Tuesday Blitz"]
[Site "Chess.com"]
[Date "2020.01.07"]
[Round "4"]
[White "aa175"]
[Black "j2806"]
[Result "0-1"]
[WhiteElo "2219"]
[BlackElo "1856"]
[TimeControl "180+2"]
[EndTime "13:54:15 PST"]
[Termination "j2806 won by resignation"]

1. d4 {[%clk 0:03:01.9]} 1... Nf6 {[%clk 0:03:00.6]} 2. Bf4 {[%clk 0:02:58.9]}
2... e6 {[%clk 0:03:01.2]} 3. e3 {[%clk 0:03:00]} 3... d5 {[%clk 0:03:01.9]} 4.
Nf3 {[%clk 0:03:01.3]} 4... c5 {[%clk 0:03:01.4]} 5. Nbd2 {[%clk 0:03:01.5]}
5... Nc6 {[%clk 0:03:01.1]} 6. c3 {[%clk 0:02:59.7]} 6... Bd6 {[%clk 0:03:00.3]}
7. Bg3 {[%clk 0:02:59.7]} 7... b6 {[%clk 0:02:56.3]} 8. Bd3 {[%clk 0:02:48.5]}
8... Bb7 {[%clk 0:02:56.2]} 9. Qe2 {[%clk 0:02:40.4]} 9... Rc8 {[%clk
0:02:50.8]} 10. e4 {[%clk 0:02:25.6]} 10... dxe4 {[%clk 0:02:44.5]} 11. Nxe4
{[%clk 0:02:27.5]} 11... Nxe4 {[%clk 0:02:31]} 12. Bxe4 {[%clk 0:02:29.4]} 12...
cxd4 {[%clk 0:02:23.7]} 13. Bxc6+ {[%clk 0:02:14.8]} 13... Bxc6 {[%clk
0:02:20.6]} 14. Bxd6 {[%clk 0:02:03.4]} 14... Qxd6 {[%clk 0:02:20.7]} 15. Nxd4
{[%clk 0:02:04.7]} 15... Bxg2 {[%clk 0:02:11.5]} 16. Rg1 {[%clk 0:02:05.8]}
16... Qxh2 {[%clk 0:02:11.1]} 17. O-O-O {[%clk 0:01:57.8]} 17... O-O {[%clk
0:02:05.9]} 18. Qg4 {[%clk 0:01:31.3]} 18... Qh6+ {[%clk 0:01:58.2]} 19. f4
{[%clk 0:01:10.1]} 19... Bd5 {[%clk 0:01:52.2]} 20. Nf3 {[%clk 0:00:35.8]} 20...
f5 {[%clk 0:01:44.1]} 21. Qg3 {[%clk 0:00:21.1]} 21... Bxf3 {[%clk 0:01:33.8]}
22. Qxf3 {[%clk 0:00:21.6]} 22... Qf6 {[%clk 0:01:35.1]} 23. Rd7 {[%clk
0:00:19.9]} 23... Rf7 {[%clk 0:01:33]} 24. Qb7 {[%clk 0:00:15.5]} 24... Rd8
{[%clk 0:01:26.8]} 25. Rxf7 {[%clk 0:00:03.5]} 25... Qxf7 {[%clk 0:01:27.2]} 26.
Qf3 {[%clk 0:00:04.2]} 26... Qd7 {[%clk 0:01:22.4]} 27. Qg3 {[%clk 0:00:02.6]}
27... Qd2+ {[%clk 0:01:20]} 28. Kb1 {[%clk 0:00:03.4]} 28... Qd3+ {[%clk
0:01:21]} 29. Kc1 {[%clk 0:00:04.2]} 29... Qxg3 {[%clk 0:01:21.7]} 30. Rxg3
{[%clk 0:00:06.1]} 30... Kf7 {[%clk 0:01:21.6]} 31. Rh3 {[%clk 0:00:06.8]} 31...
h6 {[%clk 0:01:21.8]} 32. Rh1 {[%clk 0:00:05]} 32... Kf6 {[%clk 0:01:21.8]} 33.
Kc2 {[%clk 0:00:05]} 33... e5 {[%clk 0:01:19.7]} 34. fxe5+ {[%clk 0:00:06]}
34... Kxe5 {[%clk 0:01:20.8]} 35. Re1+ {[%clk 0:00:07.6]} 35... Kf6 {[%clk
0:01:21.9]} 36. Rf1 {[%clk 0:00:08.7]} 36... g5 {[%clk 0:01:22.9]} 37. Rh1
{[%clk 0:00:09.6]} 37... Kg6 {[%clk 0:01:23.3]} 38. Re1 {[%clk 0:00:11.1]} 38...
Kf6 {[%clk 0:01:04.6]} 39. Rh1 {[%clk 0:00:10.8]} 39... Rh8 {[%clk 0:00:54.8]}
40. Re1 {[%clk 0:00:12]} 40... f4 {[%clk 0:00:54.5]} 0-1

[Event "*** Titled Tuesday Blitz"]
[Site "Chess.com"]
[Date "2020.01.07"]
[Round "4"]
[White "DamianoLew95"]
[Black "quesfr"]
[Result "1-0"]
[WhiteElo "2596"]
[BlackElo "2212"]
[TimeControl "180+2"]
[EndTime "13:54:16 PST"]
[Termination "DamianoLew95 won on time"]

1. e4 {[%clk 0:03:01.9]} 1... e6 {[%clk 0:03:00.1]} 2. d3 {[%clk 0:03:02.2]}
2... c5 {[%clk 0:02:58.7]} 3. Nd2 {[%clk 0:03:03.7]} 3... Nc6 {[%clk 0:02:56.9]}
4. Ngf3 {[%clk 0:03:04.7]} 4... d5 {[%clk 0:02:52.3]} 5. g3 {[%clk 0:03:05.5]}
5... Bd6 {[%clk 0:02:53.2]} 6. Bg2 {[%clk 0:03:05.3]} 6... Nge7 {[%clk
0:02:54.3]} 7. O-O {[%clk 0:03:05.7]} 7... O-O {[%clk 0:02:55.5]} 8. Re1 {[%clk
0:03:07]} 8... Qc7 {[%clk 0:02:56]} 9. Qe2 {[%clk 0:03:07.5]} 9... f6 {[%clk
0:02:53.6]} 10. Nf1 {[%clk 0:03:02.2]} 10... d4 {[%clk 0:02:52.3]} 11. N3d2
{[%clk 0:02:52.8]} 11... Bd7 {[%clk 0:02:33.8]} 12. Nc4 {[%clk 0:02:53.4]} 12...
b5 {[%clk 0:02:33.8]} 13. Nxd6 {[%clk 0:02:54.4]} 13... Qxd6 {[%clk 0:02:35.7]}
14. e5 {[%clk 0:02:51.7]} 14... fxe5 {[%clk 0:02:30.4]} 15. Nd2 {[%clk
0:02:51.8]} 15... Nd5 {[%clk 0:01:27.4]} 16. Ne4 {[%clk 0:02:51.9]} 16... Qe7
{[%clk 0:01:28.1]} 17. Bg5 {[%clk 0:02:53.5]} 17... Nf6 {[%clk 0:01:28.8]} 18.
a4 {[%clk 0:02:36.3]} 18... bxa4 {[%clk 0:01:16.5]} 19. Rxa4 {[%clk 0:02:29.6]}
19... Rab8 {[%clk 0:01:17.5]} 20. b3 {[%clk 0:02:28.8]} 20... Rb4 {[%clk
0:00:58.1]} 21. Ra6 {[%clk 0:02:25.1]} 21... Rb6 {[%clk 0:00:53.3]} 22. Ra4
{[%clk 0:02:17.3]} 22... Rb4 {[%clk 0:00:44.2]} 23. Ra2 {[%clk 0:02:03]} 23...
Rc8 {[%clk 0:00:37.7]} 24. Rea1 {[%clk 0:02:00.8]} 24... a5 {[%clk 0:00:29.1]}
25. Bd2 {[%clk 0:01:53.5]} 25... Rb5 {[%clk 0:00:27.3]} 26. Bg5 {[%clk
0:01:46.4]} 26... Ra8 {[%clk 0:00:20.7]} 27. Ra3 {[%clk 0:01:38.2]} 27... Ra7
{[%clk 0:00:21.3]} 28. Nd2 {[%clk 0:01:34.9]} 28... Qd6 {[%clk 0:00:15.5]} 29.
Nc4 {[%clk 0:01:32.9]} 29... Qc7 {[%clk 0:00:15.3]} 30. f4 {[%clk 0:01:14.5]}
30... exf4 {[%clk 0:00:12.8]} 31. Bxf4 {[%clk 0:01:16.4]} 31... e5 {[%clk
0:00:12]} 32. Nxe5 {[%clk 0:01:17.1]} 32... Nxe5 {[%clk 0:00:12.2]} 33. Bxe5
{[%clk 0:01:18.1]} 33... Qb6 {[%clk 0:00:11.4]} 34. Bxf6 {[%clk 0:01:07.6]}
34... Qxf6 {[%clk 0:00:12.2]} 35. Bd5+ {[%clk 0:01:07]} 35... Kh8 {[%clk
0:00:11.3]} 36. Rf1 {[%clk 0:01:08.4]} 36... Qd8 {[%clk 0:00:09.5]} 37. Qh5
{[%clk 0:01:04.7]} 1-0

[Event "*** Titled Tuesday Blitz"]
[Site "Chess.com"]
[Date "2020.01.07"]
[Round "4"]
[White "Bulldog167"]
[Black "gena217"]
[Result "0-1"]
[WhiteElo "2732"]
[BlackElo "2951"]
[TimeControl "180+2"]
[EndTime "13:54:19 PST"]
[Termination "gena217 won by resignation"]

1. d4 {[%clk 0:03:01.9]} 1... Nf6 {[%clk 0:02:59.1]} 2. c4 {[%clk 0:03:03.3]}
2... e6 {[%clk 0:02:58]} 3. Nf3 {[%clk 0:03:04.4]} 3... d5 {[%clk 0:02:57.6]} 4.
Nc3 {[%clk 0:03:05]} 4... dxc4 {[%clk 0:02:58.3]} 5. e4 {[%clk 0:03:05.7]} 5...
Bb4 {[%clk 0:02:58.4]} 6. Bg5 {[%clk 0:03:06.6]} 6... c5 {[%clk 0:02:58.9]} 7.
Bxc4 {[%clk 0:03:06.9]} 7... cxd4 {[%clk 0:02:59.8]} 8. Nxd4 {[%clk 0:03:07.9]}
8... Bxc3+ {[%clk 0:02:56.8]} 9. bxc3 {[%clk 0:03:08.5]} 9... Qa5 {[%clk
0:02:58.2]} 10. Bxf6 {[%clk 0:03:08.8]} 10... Qxc3+ {[%clk 0:02:54.6]} 11. Kf1
{[%clk 0:03:10]} 11... gxf6 {[%clk 0:02:56]} 12. Rc1 {[%clk 0:03:10.5]} 12...
Qa5 {[%clk 0:02:56.3]} 13. h4 {[%clk 0:03:11.2]} 13... Ke7 {[%clk 0:02:55]} 14.
Rh3 {[%clk 0:03:12.1]} 14... Rd8 {[%clk 0:02:55]} 15. Re3 {[%clk 0:03:12.8]}
15... Nc6 {[%clk 0:02:23.2]} 16. Nf5+ {[%clk 0:02:48.7]} 16... exf5 {[%clk
0:02:23.5]} 17. exf5+ {[%clk 0:02:43.8]} 17... Ne5 {[%clk 0:02:24.9]} 18. Qh5
{[%clk 0:02:44.2]} 18... Kd6 {[%clk 0:02:12.8]} 19. Qh6 {[%clk 0:01:45.4]} 19...
Kc7 {[%clk 0:02:00.1]} 20. Qxf6 {[%clk 0:01:26.2]} 20... Nxc4 {[%clk 0:01:59.8]}
21. Rxc4+ {[%clk 0:01:22.5]} 21... Kb8 {[%clk 0:01:59.2]} 22. Rec3 {[%clk
0:01:08]} 22... Qd5 {[%clk 0:01:13.2]} 23. Kg1 {[%clk 0:00:55.4]} 23... a5
{[%clk 0:01:05.6]} 24. Rc5 {[%clk 0:00:49.1]} 24... Qd1+ {[%clk 0:00:59.1]} 25.
Kh2 {[%clk 0:00:50.5]} 25... Ra6 {[%clk 0:01:00.6]} 26. Qxf7 {[%clk 0:00:47.1]}
26... Qd6+ {[%clk 0:00:53]} 27. g3 {[%clk 0:00:47.4]} 27... h6 {[%clk
0:00:50.8]} 28. Rc7 {[%clk 0:00:32]} 28... Bd7 {[%clk 0:00:47.2]} 29. Qb3 {[%clk
0:00:17.9]} 29... Rb6 {[%clk 0:00:47.2]} 30. Qc2 {[%clk 0:00:08.1]} 30... Bc6
{[%clk 0:00:44]} 31. Rg7 {[%clk 0:00:07.9]} 31... Qd5 {[%clk 0:00:44.3]} 32. f3
{[%clk 0:00:09]} 32... Qd4 {[%clk 0:00:36.6]} 33. Rb3 {[%clk 0:00:03.9]} 33...
Rxb3 {[%clk 0:00:36.8]} 0-1

[Event "*** Titled Tuesday Blitz"]
[Site "Chess.com"]
[Date "2020.01.07"]
[Round "4"]
[White "Terao90"]
[Black "Kostina_Nadezhda"]
[Result "1-0"]
[WhiteElo "2427"]
[BlackElo "2120"]
[TimeControl "180+2"]
[EndTime "13:54:22 PST"]
[Termination "Terao90 won by resignation"]

1. d4 {[%clk 0:03:00.9]} 1... Nf6 {[%clk 0:02:59.8]} 2. c4 {[%clk 0:03:00.2]}
2... c5 {[%clk 0:03:00.5]} 3. e3 {[%clk 0:02:59.1]} 3... cxd4 {[%clk 0:03:00.8]}
4. exd4 {[%clk 0:03:01]} 4... e6 {[%clk 0:03:01.2]} 5. Nf3 {[%clk 0:03:02]} 5...
d5 {[%clk 0:03:01.7]} 6. Nc3 {[%clk 0:03:02.9]} 6... Nc6 {[%clk 0:03:02.7]} 7.
Bd3 {[%clk 0:03:03.5]} 7... Be7 {[%clk 0:02:58.8]} 8. cxd5 {[%clk 0:03:03]} 8...
exd5 {[%clk 0:02:59.7]} 9. O-O {[%clk 0:03:04.9]} 9... Bg4 {[%clk 0:02:58.2]}
10. Be3 {[%clk 0:02:54.4]} 10... O-O {[%clk 0:02:57.3]} 11. h3 {[%clk
0:02:55.2]} 11... Bh5 {[%clk 0:02:57.7]} 12. Be2 {[%clk 0:02:52.9]} 12... Ne4
{[%clk 0:02:53.1]} 13. Rc1 {[%clk 0:02:42.6]} 13... Rc8 {[%clk 0:02:51.6]} 14.
Qb3 {[%clk 0:02:35.8]} 14... Na5 {[%clk 0:02:38.9]} 15. Qa4 {[%clk 0:02:09.2]}
15... b6 {[%clk 0:02:33.5]} 16. g4 {[%clk 0:01:57.9]} 16... Bg6 {[%clk
0:02:30.9]} 17. Ne5 {[%clk 0:01:58.9]} 17... Nxc3 {[%clk 0:02:23.1]} 18. Rxc3
{[%clk 0:02:00.8]} 18... Rxc3 {[%clk 0:02:22.8]} 19. bxc3 {[%clk 0:02:02.7]}
19... Be4 {[%clk 0:02:19.7]} 20. f3 {[%clk 0:01:57.7]} 20... Bg6 {[%clk
0:02:20]} 21. Nxg6 {[%clk 0:01:45.8]} 21... hxg6 {[%clk 0:02:19.8]} 22. f4
{[%clk 0:01:46.4]} 22... Bd6 {[%clk 0:02:13]} 23. Rf3 {[%clk 0:01:40.2]} 23...
Qc7 {[%clk 0:02:06.8]} 24. Bd2 {[%clk 0:01:26.8]} 24... Rc8 {[%clk 0:02:00.3]}
25. Ba6 {[%clk 0:01:23.7]} 25... Rd8 {[%clk 0:01:54.6]} 26. Kg2 {[%clk
0:01:21.2]} 26... Qe7 {[%clk 0:01:50.7]} 27. Re3 {[%clk 0:01:16.5]} 27... Qf6
{[%clk 0:01:48.2]} 28. Re8+ {[%clk 0:01:14.4]} 28... Rxe8 {[%clk 0:01:47.7]} 29.
Qxe8+ {[%clk 0:01:16.3]} 29... Kh7 {[%clk 0:01:48.6]} 30. Qe3 {[%clk 0:01:08.6]}
30... Nc6 {[%clk 0:01:37.2]} 31. Qf3 {[%clk 0:00:58.2]} 31... Ne7 {[%clk
0:01:26.9]} 32. Bd3 {[%clk 0:00:56.7]} 32... Qe6 {[%clk 0:01:17.8]} 33. f5
{[%clk 0:00:53.7]} 33... gxf5 {[%clk 0:01:16.1]} 34. gxf5 {[%clk 0:00:55.6]}
34... Qf6 {[%clk 0:01:14.6]} 35. Qh5+ {[%clk 0:00:52.6]} 35... Kg8 {[%clk
0:01:15.1]} 36. Bg5 {[%clk 0:00:54.2]} 36... g6 {[%clk 0:01:03.7]} 37. Qh4
{[%clk 0:00:34.3]} 37... Qg7 {[%clk 0:00:49.7]} 38. f6 {[%clk 0:00:34.4]} 38...
Qf8 {[%clk 0:00:36]} 39. fxe7 {[%clk 0:00:35.4]} 39... Qc8 {[%clk 0:00:35.2]}
40. Bf6 {[%clk 0:00:34.6]} 1-0

[Event "*** Titled Tuesday Blitz"]
[Site "Chess.com"]
[Date "2020.01.07"]
[Round "4"]
[White "tjallkompall"]
[Black "Pilopa"]
[Result "0-1"]
[WhiteElo "2751"]
[BlackElo "2559"]
[TimeControl "180+2"]
[EndTime "13:54:24 PST"]
[Termination "Pilopa won on time"]

1. d4 {[%clk 0:03:01.9]} 1... Nf6 {[%clk 0:03:00.4]} 2. Nf3 {[%clk 0:03:02.8]}
2... d5 {[%clk 0:02:59.4]} 3. e3 {[%clk 0:03:02.7]} 3... Bg4 {[%clk 0:02:57.8]}
4. Bd3 {[%clk 0:03:00.8]} 4... e6 {[%clk 0:02:58.5]} 5. c4 {[%clk 0:02:55.4]}
5... c6 {[%clk 0:02:58.8]} 6. O-O {[%clk 0:02:48.9]} 6... Nbd7 {[%clk 0:02:58]}
7. b3 {[%clk 0:02:48]} 7... Bd6 {[%clk 0:02:58.1]} 8. Bb2 {[%clk 0:02:48.2]}
8... O-O {[%clk 0:02:59.1]} 9. Nbd2 {[%clk 0:02:49.1]} 9... Qe7 {[%clk
0:02:50.2]} 10. Qc2 {[%clk 0:02:48.9]} 10... Rad8 {[%clk 0:02:32.2]} 11. Ne5
{[%clk 0:02:49]} 11... Bh5 {[%clk 0:02:30.1]} 12. f4 {[%clk 0:02:34.7]} 12...
Bg6 {[%clk 0:02:22.5]} 13. c5 {[%clk 0:02:28.4]} 13... Bc7 {[%clk 0:02:19.9]}
14. b4 {[%clk 0:02:29.2]} 14... Bxd3 {[%clk 0:02:13.9]} 15. Qxd3 {[%clk
0:02:31.1]} 15... Nxe5 {[%clk 0:02:15.1]} 16. fxe5 {[%clk 0:02:30.3]} 16... Nd7
{[%clk 0:02:15.3]} 17. b5 {[%clk 0:02:28.1]} 17... f6 {[%clk 0:02:11.9]} 18.
exf6 {[%clk 0:02:27.1]} 18... Nxf6 {[%clk 0:02:04.5]} 19. Rab1 {[%clk
0:02:00.5]} 19... e5 {[%clk 0:01:40.2]} 20. bxc6 {[%clk 0:01:53.5]} 20... e4
{[%clk 0:01:36.7]} 21. Qe2 {[%clk 0:01:48.3]} 21... bxc6 {[%clk 0:01:37.2]} 22.
Bc3 {[%clk 0:01:48.8]} 22... Qe6 {[%clk 0:01:19.9]} 23. h3 {[%clk 0:01:39.7]}
23... Rb8 {[%clk 0:01:14.2]} 24. Qa6 {[%clk 0:01:11.6]} 24... Rxb1 {[%clk
0:01:00.6]} 25. Rxb1 {[%clk 0:01:13.5]} 25... Nh5 {[%clk 0:00:56.3]} 26. Qxa7
{[%clk 0:01:12.9]} 26... Qf7 {[%clk 0:00:37.4]} 27. Qa6 {[%clk 0:00:15.5]} 27...
Qf2+ {[%clk 0:00:37.1]} 28. Kh1 {[%clk 0:00:16.7]} 28... Ng3+ {[%clk 0:00:38.6]}
29. Kh2 {[%clk 0:00:17.6]} 29... Ne2+ {[%clk 0:00:34.5]} 30. Kh1 {[%clk
0:00:18.6]} 30... Qg3 {[%clk 0:00:25.4]} 0-1